fUSD/lending_fUSD_20240109
["ID","MTS","AMOUNT","RATE_DAILY","PERIOD"]
[310935714,1704822757305,-3911.7,0.00041506,30]
[310935715,1704822757314,-914.17,0.00041506,30]
[310935716,1704822757323,-500.0,0.00041506,30]
[310935717,1704822757332,-500.0,0.00041506,30]
[310935718,1704822757342,-500.0,0.00041506,30]
[310935719,1704822757351,-500.0,0.00041506,30]
[310935720,1704822757360,-1131.67,0.00041506,30]
[310935721,1704822757369,-2215.92,0.00041506,30]
[310935722,1704822757378,-500.0,0.00041506,7]
[310935723,1704822757388,-3733.8,0.00041506,30]
[310935724,1704822757397,-2353.53,0.00041506,30]
[310935725,1704822757407,-1512.92,0.00041506,30]
[310935726,1704822757416,-1796.89,0.00041506,30]
[310935727,1704822757425,-1528.15,0.00041506,30]
[310935728,1704822757434,-4688.93,0.00041506,30]
[310935729,1704822757443,-2618.04,0.00041506,30]
[310935730,1704822757452,-4825.11,0.00041506,30]
[310935731,1704822757461,-500.0,0.00041506,15]
[310935732,1704822757471,-2560.7,0.00041506,30]
[310935733,1704822757480,-519.71,0.00041506,30]
[310935734,1704822757490,-2121.56,0.00041506,30]
[310935735,1704822757502,-500.0,0.00041506,30]
[310935736,1704822757512,-23952.72,0.00041506,30]
[310935737,1704822757522,-1303.54,0.00041506,30]
[310935738,1704822757532,-2435.46,0.00041506,30]
[310935739,1704822757542,-752.79,0.00041506,30]
[310935740,1704822757551,-500.0,0.00041506,30]
[310935741,1704822757561,-847.62,0.00041506,30]
[310935742,1704822757570,-500.0,0.00041506,30]
[310935743,1704822757579,-689.54,0.00041506,30]
[310935744,1704822757589,-7922.58,0.00041506,30]
[310935745,1704822757600,-2584.24,0.00041506,30]
[310935746,1704822757610,-947.91,0.00041506,30]
[310935747,1704822757620,-2075.66,0.00041506,30]
[310935748,1704822757629,-846.93,0.00041506,30]
[310935749,1704822757639,-500.0,0.00041506,30]
[310935750,1704822757649,-6851.14,0.00041506,30]
[310935751,1704822757659,-3535.22,0.00041506,30]
[310935752,1704822757668,-2262.47,0.00041506,30]
[310935753,1704822757678,-766.2,0.00041506,30]
[310935754,1704822757688,-2095.74,0.00041506,30]
[310935755,1704822757698,-4048.91,0.00041506,30]
[310935756,1704822757707,-5660.14,0.00041506,30]
[310935757,1704822757716,-629.69,0.00041506,30]
[310935758,1704822757726,-533.62,0.00041506,30]
[310935759,1704822757735,-500.0,0.00041506,30]
[310935760,1704822757745,-773.42,0.00041506,30]
[310935761,1704822757755,-1632.87,0.00041506,30]
[310935762,1704822757766,-2323.31,0.00041506,30]
[310935763,1704822757776,-516.98,0.00041506,30]
[310935764,1704822757785,-2208.88,0.00041506,30]
[310935765,1704822757795,-687.15,0.00041506,30]
[310935766,1704822757805,-641.49,0.00041506,30]
[310935767,1704822757814,-11260.39,0.00041506,30]
[310935768,1704822757823,-720.42,0.00041506,30]
[310935769,1704822757833,-909.51,0.00041506,30]
[310935770,1704822757843,-5222.0,0.00041506,30]
[310935771,1704822757852,-1861.66,0.00041506,30]
[310935772,1704822757862,-500.0,0.00041506,30]
[310935773,1704822757872,-500.0,0.00041506,30]
[310935774,1704822757881,-2706.98,0.00041506,30]
[310935775,1704822757891,-1000.0,0.00041506,30]
[310935776,1704822757901,-873.72,0.00041506,30]
[310935777,1704822757910,-892.91,0.00041506,30]
[310935778,1704822757920,-500.0,0.00041506,30]
[310935779,1704822757929,-5255.79,0.00041506,30]
[310935780,1704822757939,-877.85,0.00041506,30]
[310935781,1704822757948,-500.0,0.00041506,30]
[310935782,1704822757958,-500.0,0.00041506,30]
[310935783,1704822757967,-2821.26,0.00041506,30]
[310935784,1704822757977,-5683.38,0.00041506,30]
[310935785,1704822757986,-500.0,0.00041506,30]
[310935786,1704822757996,-500.0,0.00041506,30]
[310935787,1704822758006,-2549.41,0.00041506,30]
[310935788,1704822758017,-2896.34,0.00041506,30]
[310935789,1704822758027,-500.0,0.00041506,30]
[310935790,1704822758037,-4548.33,0.00041506,30]
[310935791,1704822758046,-2314.18,0.00041506,30]
[310935792,1704822758055,-500.0,0.00041506,30]
[310935793,1704822758065,-2089.66,0.00041506,30]
[310935794,1704822758074,-606.99,0.00041506,30]
[310935795,1704822758084,-641.77,0.00041506,30]
[310935796,1704822758094,-500.0,0.00041506,30]
[310935797,1704822758104,-3012.02,0.00041506,30]
[310935798,1704822758114,-2874.45,0.00041506,30]
[310935799,1704822758124,-847.35,0.00041506,30]
[310935800,1704822758134,-4927.93,0.00041506,30]
[310935801,1704822758144,-1016.59,0.00041506,30]
[310935802,1704822758154,-1577.99,0.00041506,30]
[310935803,1704822758163,-3470.52,0.00041506,30]
[310935804,1704822758174,-500.0,0.00041506,30]
[310935805,1704822758183,-500.0,0.00041506,30]
[310935806,1704822758193,-1414.19,0.00041506,30]
[310935807,1704822758203,-2293.4,0.00041506,30]
[310935808,1704822758213,-500.0,0.00041506,30]
[310935809,1704822758222,-500.0,0.00041506,30]
[310935810,1704822758232,-500.0,0.00041506,30]
[310935811,1704822758242,-1523.26,0.00041506,30]
[310935812,1704822758252,-473.91812224,0.00041506,30]
[310935813,1704822758262,-5553.45,0.00041506,30]
[310935814,1704822758272,-1021.68,0.00041506,30]
[310935815,1704822758282,-500.0,0.00041506,30]
[310935816,1704822758293,-1073.92,0.00041506,30]
[310935817,1704822758302,-500.0,0.00041506,30]
[310935818,1704822758312,-1321.2,0.00041506,30]
[310935819,1704822758321,-500.0,0.00041506,30]
[310935820,1704822758331,-500.0,0.00041506,30]
[310935821,1704822758341,-500.0,0.00041506,30]
[310935822,1704822758351,-197.09711991,0.00041506,30]
[310935823,1704822758361,-5163.1,0.00041506,30]
[310935824,1704822758371,-1629.25,0.00041506,30]
[310935825,1704822758380,-500.0,0.00041506,30]
[310935826,1704822758391,-358.25528062,0.00041506,30]
[310935827,1704822758401,-857.66,0.00041506,30]
[310935828,1704822758411,-2550.91,0.00041506,30]
[310935829,1704822758420,-644.1,0.00041506,30]
[310935830,1704822758430,-1296.82,0.00041506,30]
[310935831,1704822758441,-658.7,0.00041506,30]
[310935832,1704822758452,-2556.57,0.00041506,30]
[310935833,1704822758462,-671.14,0.00041506,30]
[310935834,1704822758471,-4084.77,0.00041506,30]
[310935835,1704822758481,-4448.37,0.00041506,5]
[310935836,1704822758492,-312.69618193,0.00041506,2]
[310935837,1704822758506,-263.42903775,0.00041522,4]
[310935838,1704822758516,-500.0,0.00041589,30]
[310935839,1704822758526,-500.0,0.00041589,30]
[310935840,1704822758536,-500.0,0.00041589,30]
[310935841,1704822758546,-359.0419992,0.00041589,30]
[310935842,1704822758557,-243.06588011,0.00041589,30]
[310935843,1704822758567,-500.0,0.00041589,30]
[310935844,1704822758577,-500.0,0.00041589,30]
[310935845,1704822758587,-807.49,0.00041589,30]
[310935846,1704822758597,-1064.88,0.00041589,30]
[310935847,1704822758607,-504.18,0.00041589,30]
[310935848,1704822758616,-500.0,0.00041589,30]
[310935849,1704822758626,-500.0,0.00041589,30]
[310935850,1704822758636,-1384.92,0.00041589,30]
[310935851,1704822758646,-1040.33,0.00041589,30]
[310935852,1704822758656,-500.0,0.00041589,30]
[310935853,1704822758665,-678.56,0.00041589,30]
[310935854,1704822758675,-551.38585179,0.00041589,30]
[310935855,1704822758685,-454.35051558,0.00041589,30]
[310935856,1704822758694,-500.0,0.00041589,30]
[310935857,1704822758704,-500.0,0.00041589,30]
[310935858,1704822758714,-1183.13,0.00041589,30]
[310935859,1704822758723,-500.0,0.00041589,2]
[310935860,1704822758734,-500.0,0.00041589,30]
[310935861,1704822758743,-500.0,0.00041589,30]
[310935862,1704822758753,-500.0,0.00041589,30]
[310935863,1704822758765,-466.34122137,0.00041589,30]
[310935864,1704822758774,-500.0,0.00041589,30]
[310935865,1704822758785,-500.0,0.00041589,30]
[310935866,1704822758796,-500.0,0.00041589,30]
[310935867,1704822758806,-178.7,0.00041589,30]
[310935868,1704822758816,-500.0,0.00041589,30]
[310935869,1704822758826,-500.0,0.00041589,30]
[310935870,1704822758836,-500.0,0.00041589,30]
[310935871,1704822758846,-500.0,0.00041589,30]
[310935872,1704822758856,-500.0,0.00041589,30]
[310935873,1704822758866,-848.16,0.00041589,30]
[310935874,1704822758877,-996.71,0.00041589,30]
[310935875,1704822758888,-582.4,0.00041589,30]
[310935876,1704822758898,-500.0,0.00041589,30]
[310935877,1704822758909,-500.0,0.00041589,30]
[310935878,1704822758919,-257.86217341,0.00041589,30]
[310935879,1704822758929,-500.0,0.00041589,30]
[310935880,1704822758939,-500.0,0.00041589,30]
[310935881,1704822758950,-500.0,0.00041589,30]
[310935882,1704822758960,-763.12,0.00041589,30]
[310935883,1704822758969,-500.0,0.00041589,30]
[310935884,1704822758980,-500.0,0.00041589,30]
[310935885,1704822758991,-629.14,0.00041589,2]
[310935886,1704822759000,-500.0,0.00041589,30]
[310935887,1704822759013,-215.02905329,0.00041589,30]
[310935888,1704822759023,-500.0,0.00041589,30]
[310935889,1704822759034,-500.0,0.00041589,30]
[310935890,1704822759043,-553.98969778,0.00041589,30]
[310935891,1704822759053,-668.65,0.00041589,30]
[310935892,1704822759063,-823.05,0.00041589,30]
[310935893,1704822759073,-500.0,0.00041589,30]
[310935894,1704822759084,-500.0,0.00041589,30]
[310935895,1704822759094,-500.0,0.00041589,30]
[310935896,1704822759104,-500.0,0.00041589,30]
[310935897,1704822759114,-500.0,0.00041589,30]
[310935898,1704822759125,-536.16393807,0.00041589,30]
[310935899,1704822759135,-515.39588188,0.00041589,30]
[310935900,1704822759145,-270.13912685,0.00041589,30]
[310935901,1704822759155,-723.9,0.00041589,30]
[310935902,1704822759165,-782.81,0.00041589,30]
[310935903,1704822759175,-500.0,0.00041589,30]
[310935904,1704822759185,-579.80008755,0.00041589,30]
[310935905,1704822759195,-500.0,0.00041589,30]
[310935906,1704822759206,-500.0,0.00041589,30]
[310935907,1704822759216,-969.63,0.00041589,30]
[310935908,1704822759226,-500.0,0.00041589,30]
[310935909,1704822759237,-566.95,0.00041589,30]
[310935910,1704822759247,-500.0,0.00041589,30]
[310935911,1704822759257,-500.0,0.00041589,30]
[310935912,1704822759271,-500.0,0.00041589,30]
[310935913,1704822759281,-500.0,0.00041589,30]
[310935914,1704822759291,-623.06,0.00041589,30]
[310935915,1704822759301,-500.0,0.00041589,30]
[310935916,1704822759311,-500.0,0.00041589,30]
[310935917,1704822759321,-516.99,0.00041589,30]
[310935918,1704822759331,-500.0,0.00041589,30]
[310935919,1704822759340,-500.0,0.00041589,30]
[310935920,1704822759350,-702.04,0.00041589,30]
[310935921,1704822759360,-500.0,0.00041589,30]
[310935922,1704822759370,-500.0,0.00041589,30]
[310935923,1704822759380,-500.0,0.00041589,30]
[310935924,1704822759389,-716.56,0.00041589,30]
[310935925,1704822759399,-748.95,0.00041589,30]
[310935926,1704822759409,-500.0,0.00041589,15]
[310935927,1704822759419,-295.55091053,0.00041589,30]
[310935928,1704822759429,-500.0,0.00041589,30]
[310935929,1704822759439,-500.0,0.00041589,30]
[310935930,1704822759449,-672.74,0.00041589,30]
[310935931,1704822759460,-500.0,0.00041589,30]
[310935932,1704822759469,-500.0,0.00041589,30]
[310935933,1704822759479,-500.0,0.00041589,30]
[310935934,1704822759489,-500.0,0.00041589,30]
[310935935,1704822759501,-647.35,0.00041589,30]
[310935936,1704822759513,-685.1,0.00041589,30]
[310935937,1704822759522,-500.0,0.00041589,30]
[310935938,1704822759532,-500.0,0.00041589,30]
[310935939,1704822759542,-1120.19,0.00041589,30]
[310935940,1704822759551,-500.0,0.00041589,30]
[310935941,1704822759561,-500.0,0.00041589,30]
[310935942,1704822759571,-500.0,0.00041589,30]
[310935943,1704822759581,-500.0,0.00041589,30]
[310935944,1704822759591,-500.0,0.00041589,30]
[310935945,1704822759601,-500.0,0.00041589,30]
[310935946,1704822759611,-500.0,0.00041589,30]
[310935947,1704822759622,-500.0,0.00041589,30]
[310935948,1704822759633,-432.92666658,0.00041589,30]
[310935949,1704822759904,-647.58,0.00041589,30]
[310935950,1704822759913,-500.0,0.00041589,30]
[310935951,1704822759923,-500.0,0.00041589,30]
[310935952,1704822759933,-500.0,0.00041589,30]
[310935953,1704822759942,-453.57606428,0.00041589,30]
[310935954,1704822759952,-500.0,0.00041589,30]
[310935955,1704822759961,-558.85,0.00041589,30]
[310935956,1704822759970,-742.86,0.00041589,30]
[310935957,1704822759980,-442.36995865,0.00041589,30]
[310935958,1704822759989,-581.63,0.00041589,30]
[310935959,1704822759999,-807.83,0.00041589,30]
[310935960,1704822760008,-500.0,0.00041589,30]
[310935961,1704822760019,-500.0,0.00041589,30]
[310935962,1704822760028,-500.0,0.00041589,30]
[310935963,1704822760038,-500.0,0.00041589,30]
[310935964,1704822760048,-500.0,0.00041589,30]
[310935965,1704822760058,-500.0,0.00041589,30]
[310935966,1704822760067,-517.95,0.00041589,30]
[310935967,1704822760078,-500.0,0.00041589,30]
[310935968,1704822760088,-500.0,0.00041589,30]
[310935969,1704822760098,-632.05,0.00041589,30]
[310935970,1704822760108,-500.0,0.00041589,30]
[310935971,1704822760118,-500.0,0.00041589,30]
[310935972,1704822760128,-500.0,0.00041589,30]
[310935973,1704822760138,-584.63179438,0.00041589,30]
[310935974,1704822760148,-500.0,0.00041589,30]
[310935975,1704822760158,-500.0,0.00041589,30]
[310935976,1704822760168,-654.13,0.00041589,30]
[310935977,1704822760178,-899.39,0.00041589,30]
[310935978,1704822760188,-500.0,0.00041589,30]
[310935979,1704822760198,-500.0,0.00041589,30]
[310935980,1704822760208,-500.0,0.00041589,30]
[310935981,1704822760218,-537.47,0.00041589,30]
[310935982,1704822760228,-500.0,0.00041589,30]
[310935983,1704822760237,-680.46,0.00041589,30]
[310935984,1704822760247,-797.4,0.00041589,30]
[310935985,1704822760257,-500.0,0.00041589,7]
[310935986,1704822760270,-1018.51,0.00041589,30]
[310935987,1704822760280,-856.07,0.00041589,30]
[310935988,1704822760289,-507.18745862,0.00041589,30]
[310935989,1704822760299,-500.0,0.00041589,30]
[310935990,1704822760308,-500.0,0.00041589,30]
[310935991,1704822760318,-500.0,0.00041589,30]
[310935992,1704822760327,-500.0,0.00041589,30]
[310935993,1704822760337,-1130.34,0.00041589,30]
[310935994,1704822760347,-593.8,0.00041589,30]
[310935995,1704822760357,-500.0,0.00041589,30]
[310935996,1704822760367,-500.0,0.00041589,30]
[310935997,1704822760376,-511.72,0.00041589,30]
[310935998,1704822760386,-952.27,0.00041589,30]
[310935999,1704822760396,-309.1311193,0.00041589,30]
[310936000,1704822760405,-528.56,0.00041589,30]
[310936001,1704822760416,-500.0,0.00041589,30]
[310936002,1704822760425,-691.64,0.00041589,30]
[310936003,1704822760435,-500.0,0.00041589,30]
[310936004,1704822760445,-500.0,0.00041589,30]
[310936005,1704822760454,-500.0,0.00041589,30]
[310936006,1704822760464,-500.0,0.00041589,30]
[310936007,1704822760473,-1470.07,0.00041589,30]
[310936008,1704822760482,-834.95,0.00041589,30]
[310936009,1704822760492,-500.0,0.00041589,30]
[310936010,1704822760505,-603.81,0.00041589,30]
[310936011,1704822760517,-500.0,0.00041589,30]
[310936012,1704822760526,-500.0,0.00041589,30]
[310936013,1704822760536,-3062.67,0.00041589,30]
[310936014,1704822760546,-637.53,0.00041589,30]
[310936015,1704822760556,-423.88991649,0.00041589,30]
[310936016,1704822760565,-500.0,0.00041589,30]
[310936017,1704822760575,-500.0,0.00041589,30]
[310936018,1704822760585,-500.0,0.00041589,30]
[310936019,1704822760594,-500.0,0.00041589,30]
[310936020,1704822760603,-500.0,0.00041589,30]
[310936021,1704822760612,-951.54,0.00041589,30]
[310936022,1704822760622,-1554.84,0.00041589,30]
[310936023,1704822760631,-500.0,0.00041589,30]
[310936024,1704822760641,-500.0,0.00041589,30]
[310936025,1704822760650,-783.64,0.00041589,30]
[310936026,1704822760660,-500.0,0.00041589,30]
[310936027,1704822760669,-500.0,0.00041589,30]
[310936028,1704822760679,-500.0,0.00041589,30]
[310936029,1704822760688,-500.0,0.00041589,30]
[310936030,1704822760698,-1000.0,0.00041589,2]
[310936031,1704822760708,-955.99,0.00041589,30]
[310936032,1704822760718,-500.0,0.00041589,30]
[310936033,1704822760727,-584.0,0.00041589,30]
[310936034,1704822760737,-500.0,0.00041589,30]
[310936035,1704822760746,-500.0,0.00041589,30]
[310936036,1704822760755,-742.2,0.00041589,30]
[310936037,1704822760766,-500.0,0.00041589,30]
[310936038,1704822760776,-667.03,0.00041589,30]
[310936039,1704822760785,-500.0,0.00041589,30]
[310936040,1704822760795,-1579.23,0.00041589,30]
[310936041,1704822760804,-500.0,0.00041589,30]
[310936042,1704822760813,-500.0,0.00041589,30]
[310936043,1704822760823,-1683.26,0.00041589,30]
[310936044,1704822760833,-732.8,0.00041589,30]
[310936045,1704822760843,-500.0,0.00041589,30]
[310936046,1704822760852,-500.0,0.00041589,30]
[310936047,1704822760862,-500.0,0.00041589,30]
[310936048,1704822760871,-1701.57,0.00041589,30]
[310936049,1704822760880,-500.0,0.00041589,30]
[310936050,1704822760889,-609.24,0.00041589,30]
[310936051,1704822760898,-995.31,0.00041589,30]
[310936052,1704822760907,-500.0,0.00041589,30]
[310936053,1704822760916,-500.0,0.00041589,30]
[310936054,1704822760926,-546.32,0.00041589,30]
[310936055,1704822760935,-1289.05,0.00041589,30]
[310936056,1704822760944,-1075.03,0.00041589,30]
[310936057,1704822760953,-500.0,0.00041589,30]
[310936058,1704822760963,-500.0,0.00041589,30]
[310936059,1704822760972,-1605.53,0.00041589,30]
[310936060,1704822760981,-500.0,0.00041589,30]
[310936061,1704822760991,-1111.16,0.00041589,30]
[310936062,1704822761000,-500.0,0.00041589,30]
[310936063,1704822761009,-746.35,0.00041589,30]
[310936064,1704822761020,-1189.53,0.00041589,30]
[310936065,1704822761029,-500.0,0.00041589,30]
[310936066,1704822761038,-500.0,0.00041589,30]
[310936067,1704822761048,-1587.98,0.00041589,30]
[310936068,1704822761057,-566.22,0.00041589,30]
[310936069,1704822761067,-927.99,0.00041589,30]
[310936070,1704822761077,-500.0,0.00041589,30]
[310936071,1704822761086,-500.0,0.00041589,30]
[310936072,1704822761096,-665.79,0.00041589,30]
[310936073,1704822761105,-1083.99,0.00041589,30]
[310936074,1704822761115,-1352.1,0.00041589,30]
[310936075,1704822761125,-500.0,0.00041589,30]
[310936076,1704822761134,-500.0,0.00041589,30]
[310936077,1704822761144,-657.61,0.00041589,30]
[310936078,1704822761154,-500.0,0.00041589,30]
[310936079,1704822761164,-831.46,0.00041589,30]
[310936080,1704822761174,-876.27,0.00041589,30]
[310936081,1704822761183,-1165.49,0.00041589,30]
[310936082,1704822761193,-1499.79,0.00041589,30]
[310936083,1704822761203,-500.0,0.00041589,30]
[310936084,1704822761213,-1224.45,0.00041589,30]
[310936085,1704822761222,-585.09,0.00041589,30]
[310936086,1704822761232,-500.0,0.00041589,30]
[310936087,1704822761242,-1187.3,0.00041589,30]
[310936088,1704822761252,-500.0,0.00041589,30]
[310936089,1704822761263,-1451.41,0.00041589,30]
[310936090,1704822761272,-1109.01,0.00041589,30]
[310936091,1704822761282,-1165.31,0.00041589,30]
[310936092,1704822761291,-500.0,0.00041589,30]
[310936093,1704822761302,-500.0,0.00041589,30]
[310936094,1704822761311,-500.0,0.00041589,30]
[310936095,1704822761320,-1030.53,0.00041589,30]
[310936096,1704822761329,-1058.21,0.00041589,30]
[310936097,1704822761339,-713.27,0.00041589,30]
[310936098,1704822761349,-500.0,0.00041589,30]
[310936099,1704822761359,-1268.66,0.00041589,30]
[310936100,1704822761369,-2171.66,0.00041589,30]
[310936101,1704822761379,-657.69,0.00041589,30]
[310936102,1704822761389,-300.0,0.00041589,30]
[310936103,1704822761399,-698.65,0.00041589,30]
[310936104,1704822761410,-816.63,0.00041589,5]
[310936105,1704822761419,-835.19,0.00041589,30]
[310936106,1704822761429,-500.0,0.00041589,30]
[310936107,1704822761439,-500.0,0.00041589,30]
[310936108,1704822761449,-500.0,0.00041589,30]
[310936109,1704822761459,-617.92,0.00041589,30]
[310936110,1704822761469,-165.40457577,0.00041589,30]
[310936111,1704822761480,-3829.67,0.00041589,30]
[310936112,1704822761489,-1000.0,0.00041589,2]
[310936113,1704822761501,-500.0,0.00041589,2]
[310936114,1704822761513,-653.11,0.00041589,30]
[310936115,1704822761523,-500.0,0.00041589,30]
[310936116,1704822761533,-1196.79,0.00041589,30]
[310936117,1704822761542,-644.40355332,0.00041589,30]
[310936118,1704822761551,-500.0,0.00041589,30]
[310936119,1704822761562,-500.0,0.00041589,30]
[310936120,1704822761571,-924.68,0.00041589,30]
[310936121,1704822761581,-1534.65,0.00041589,30]
[310936122,1704822761590,-1071.73,0.00041589,30]
[310936123,1704822761600,-500.0,0.00041589,30]
[310936124,1704822761610,-910.34,0.00041589,30]
[310936125,1704822761619,-563.27,0.00041589,30]
[310936126,1704822761629,-2625.83,0.00041589,30]
[310936127,1704822761639,-1003.2,0.00041589,30]
[310936128,1704822761649,-574.60465855,0.00041589,30]
[310936129,1704822761659,-1069.06,0.00041589,30]
[310936130,1704822761668,-693.77,0.00041589,30]
[310936131,1704822761677,-505.25247658,0.00041589,30]
[310936132,1704822761687,-3358.65,0.00041589,30]
[310936133,1704822761696,-3778.52,0.00041589,30]
[310936134,1704822761705,-775.18,0.00041589,30]
[310936135,1704822761714,-500.0,0.00041589,30]
[310936136,1704822761724,-500.0,0.00041589,30]
[310936137,1704822761733,-1018.17,0.00041589,30]
[310936138,1704822761743,-500.0,0.00041589,30]
[310936139,1704822761753,-627.54,0.00041589,30]
[310936140,1704822761763,-1597.58,0.00041589,30]
[310936141,1704822761773,-680.27,0.00041589,30]
[310936142,1704822761782,-1108.25,0.00041589,30]
[310936143,1704822761792,-680.58,0.00041589,30]
[310936144,1704822761801,-500.0,0.00041589,30]
[310936145,1704822761811,-500.0,0.00041589,30]
[310936146,1704822761820,-840.77,0.00041589,30]
[310936147,1704822761829,-500.0,0.00041589,30]
[310936148,1704822761839,-1688.18,0.00041589,30]
[310936149,1704822761849,-500.0,0.00041589,30]
[310936150,1704822761858,-500.0,0.00041589,30]
[310936151,1704822761867,-764.23,0.00041589,30]
[310936152,1704822761877,-500.0,0.00041589,30]
[310936153,1704822761887,-500.0,0.00041589,30]
[310936154,1704822761896,-500.0,0.00041589,30]
[310936155,1704822761906,-475.22829131,0.00041589,30]
[310936156,1704822761915,-1292.97,0.00041589,30]
[310936157,1704822761925,-2704.06,0.00041589,30]
[310936158,1704822761934,-689.03,0.00041589,30]
[310936159,1704822761943,-897.63,0.00041589,30]
[310936160,1704822761952,-1997.42,0.00041589,30]
[310936161,1704822761961,-753.25,0.00041589,30]
[310936162,1704822761971,-863.4,0.00041589,30]
[310936163,1704822761980,-500.0,0.00041589,30]
[310936164,1704822761989,-1538.51,0.00041589,30]
[310936165,1704822761998,-1469.75,0.00041589,30]
[310936166,1704822762007,-500.0,0.00041589,30]
[310936167,1704822762018,-744.34,0.00041589,30]
[310936168,1704822762027,-500.0,0.00041589,30]
[310936169,1704822762037,-500.0,0.00041589,30]
[310936170,1704822762046,-1416.77,0.00041589,30]
[310936171,1704822762055,-544.19,0.00041589,30]
[310936172,1704822762064,-1752.19,0.00041589,30]
[310936173,1704822762073,-500.0,0.00041589,30]
[310936174,1704822762083,-500.0,0.00041589,10]
[310936175,1704822762092,-500.0,0.00041589,30]
[310936176,1704822762101,-500.0,0.00041589,30]
[310936177,1704822762110,-992.88,0.00041589,30]
[310936178,1704822762120,-907.17,0.00041589,30]
[310936179,1704822762130,-820.02,0.00041589,30]
[310936180,1704822762139,-696.79,0.00041589,30]
[310936181,1704822762148,-1042.21,0.00041589,30]
[310936182,1704822762158,-830.16,0.00041589,30]
[310936183,1704822762167,-921.85,0.00041589,30]
[310936184,1704822762176,-500.0,0.00041589,30]
[310936185,1704822762185,-936.43,0.00041589,30]
[310936186,1704822762195,-500.0,0.00041589,30]
[310936187,1704822762310,-500.0,0.00041589,30]
[310936188,1704822762319,-500.0,0.00041589,30]
[310936189,1704822762329,-500.0,0.00041589,30]
[310936190,1704822762337,-500.0,0.00041589,30]
[310936191,1704822762347,-500.0,0.00041589,30]
[310936192,1704822762356,-3608.68,0.00041589,30]
[310936193,1704822762366,-1062.16,0.00041589,30]
[310936194,1704822762375,-797.98,0.00041589,30]
[310936195,1704822762384,-848.43,0.00041589,30]
[310936196,1704822762393,-594.13,0.00041589,30]
[310936197,1704822762402,-543.9,0.00041589,30]
[310936198,1704822762411,-275.22104045,0.00041589,30]
[310936199,1704822762420,-500.0,0.00041589,30]
[310936200,1704822762429,-500.0,0.00041589,30]
[310936201,1704822762439,-765.38,0.00041589,30]
[310936202,1704822762448,-1432.21,0.00041589,30]
[310936203,1704822762457,-1359.32,0.00041589,30]
[310936204,1704822762466,-500.0,0.00041589,30]
[310936205,1704822762476,-500.0,0.00041589,30]
[310936206,1704822762485,-1854.87,0.00041589,30]
[310936207,1704822762493,-720.0,0.00041589,30]
[310936208,1704822762505,-1281.62,0.00041589,30]
[310936209,1704822762516,-558.71,0.00041589,30]
[310936210,1704822762525,-1462.19,0.00041589,30]
[310936211,1704822762535,-500.0,0.00041589,30]
[310936212,1704822762544,-543.96,0.00041589,30]
[310936213,1704822762553,-500.0,0.00041589,30]